bitfinex/quotes_ETHUSD_20220201
["timestamp","ask_amount","ask_price","bid_price","bid_amount"]
[1643705541624,1.29234946,2757.8,2757.5,1.81276]
[1643705541821,1.59234946,2757.8,2757.5,1.81276]
[1643705542020,0.1812,2757.9,2757.6,0.3]
[1643705542220,1.29214258,2757.8,2757.6,0.3]
[1643705542644,1.59214258,2757.8,2757.6,0.3]
[1643705542846,0.3,2757.8,2757.6,0.3]
[1643705543345,0.1812,2757.9,2757.6,0.3]
[1643705543546,1.1117669,2758.0,2757.6,0.3]
[1643705544149,1.292194,2757.9,2757.6,0.3]
[1643705544745,1.4117669,2758.0,2757.6,0.3]
[1643705545949,1.4117669,2758.0,2757.6,2.11328]
[1643705546400,1.4117669,2758.0,2757.6,3.11328]
[1643705546604,1.1117669,2758.0,2757.6,3.11328]
[1643705546809,1.1117669,2758.0,2757.7,0.31218]
[1643705547011,1.1117669,2758.0,2757.8,21.914]
[1643705547304,1.1117669,2758.0,2757.9,27.5712]
[1643705547604,1.1117669,2758.0,2757.9,23.3952]
[1643705548005,1.1117669,2758.0,2757.9,23.52618]
[1643705548404,1.1117669,2758.0,2757.9,23.30618]
[1643705548608,1.1117669,2758.0,2757.9,23.22618]
[1643705549513,1.1117669,2758.0,2757.9,25.25985618]
[1643705550247,1.1117669,2758.0,2757.9,25.55985618]
[1643705553053,1.1117669,2758.0,2757.9,25.37865618]
[1643705553253,1.1117669,2758.0,2757.9,3.98865618]
[1643705553455,1.1117669,2758.0,2757.8,1.08763]
[1643705553701,1.1117669,2758.0,2757.8,0.90643]
[1643705554313,0.78099101,2758.0,2757.8,0.90643]
[1643705554707,0.78099101,2758.0,2757.8,2.20643]
[1643705556109,0.78099101,2758.0,2757.8,23.59643]
[1643705558163,0.78099101,2758.0,2757.8,22.69]
[1643705559777,0.78099101,2758.0,2757.9,0.22130776]
[1643705560375,0.78099101,2758.0,2757.8,1.3]
[1643705560571,0.96219101,2758.0,2757.8,0.3]
[1643705560770,0.96219101,2758.0,2757.5,1.3]
[1643705560969,0.96219101,2758.0,2757.6,0.2153489]
[1643705561200,0.96219101,2758.0,2757.7,0.2153489]
[1643705561604,0.96219101,2758.0,2757.8,0.2153489]
[1643705561807,0.96219101,2758.0,2757.4,23.33407]
[1643705562004,0.96219101,2758.0,2757.5,0.21542882]
[1643705562239,0.96219101,2758.0,2757.5,1.51542882]
[1643705562407,0.96219101,2758.0,2757.6,0.21542882]
[1643705564406,2.86070952,2758.0,2757.6,0.21542882]
[1643705564609,1.30279442,2757.9,2757.6,0.21542882]
[1643705564810,1.30279442,2757.9,2757.2,1.1812]
[1643705564811,2.2124989,2757.8,2757.7,0.21542882]
[1643705565051,1.48399442,2757.8,2757.7,0.21542882]
[1643705565250,2.22785091,2757.8,2757.7,0.21542882]
[1643705565453,5.22785091,2757.8,2757.7,0.21542882]
[1643705566058,7.18523294,2757.8,2757.0,1.43098]
[1643705566257,1.48399442,2757.7,2757.1,0.21610894]
[1643705566457,1.30279442,2757.6,2757.1,0.21610894]
[1643705569105,1.60279442,2757.6,2757.1,0.21610894]
[1643705569305,1.30279442,2757.5,2757.1,0.21610894]
[1643705570509,0.1812,2757.7,2757.1,0.21610894]
[1643705570709,1.31756789,2757.6,2757.2,0.3]
[1643705570910,1.31756789,2757.6,2757.3,0.21610894]
[1643705571110,1.31756789,2757.6,2757.4,0.21610894]
[1643705571311,1.31756789,2757.6,2757.2,0.3]
[1643705571312,1.31756789,2757.6,2757.5,0.21610894]
[1643705571755,1.31756789,2757.7,2757.5,0.21610894]
[1643705571916,1.31756789,2757.7,2757.6,0.21610894]
[1643705572118,3.19298939,2757.7,2757.6,0.21610894]
[1643705572315,1.31756789,2757.7,2757.6,0.21610894]
[1643705573151,1.49876789,2757.7,2757.6,0.21610894]
[1643705573952,1.31756789,2757.7,2757.6,0.21610894]
[1643705574953,1.61756789,2757.7,2757.6,0.21610894]
[1643705575156,3.49220345,2757.7,2757.6,0.21610894]
[1643705575357,7.74220345,2757.7,2757.6,0.21610894]
[1643705575561,7.92340345,2757.7,2757.6,0.21610894]
[1643705575958,7.92340345,2757.7,2757.2,1.81339]
[1643705576208,1.31756789,2757.6,2757.3,0.18450855]
[1643705576602,1.31756789,2757.6,2757.4,0.3]
[1643705576803,1.31756789,2757.6,2757.5,0.18450855]
[1643705577904,1.31756789,2757.6,2757.5,1.18450855]
[1643705578306,1.33714256,2757.6,2757.5,1.18450855]
[1643705578506,1.33714018,2757.8,2757.5,1.18450855]
[1643705578705,1.33729171,2757.7,2757.6,0.18450855]
[1643705578906,1.33729171,2757.8,2757.6,0.18450855]
[1643705579116,0.78099101,2758.0,2757.7,0.1812]
[1643705579308,1.33625377,2757.9,2757.8,0.18450855]
[1643705579507,0.78099101,2758.0,2757.8,0.36570855]
[1643705579709,0.78099101,2758.0,2757.9,0.36570855]
[1643705579945,2.11752824,2758.0,2757.9,0.36570855]
[1643705580147,0.78099101,2758.0,2757.9,0.18450855]
[1643705580551,2.11753303,2758.0,2757.8,1.36570855]
[1643705580751,0.78099101,2758.0,2757.9,0.18450855]
[1643705580950,0.78099101,2758.0,2757.9,0.36570855]
[1643705581151,2.12038558,2758.0,2757.9,0.36570855]
[1643705581353,0.78099101,2758.0,2757.9,0.36570855]
[1643705581751,2.12037655,2758.0,2757.9,0.36570855]
[1643705581952,2.12037689,2758.0,2757.9,0.36570855]
[1643705582151,2.12037573,2758.0,2757.9,0.36570855]
[1643705582387,0.78099101,2758.0,2757.9,0.36570855]
[1643705582957,2.12035526,2758.0,2757.9,0.36570855]
[1643705583154,0.78099101,2758.0,2757.9,0.36570855]
[1643705583357,2.12037894,2758.0,2757.9,0.36570855]
[1643705583553,0.78099101,2758.0,2757.9,0.36570855]
[1643705583801,2.12036773,2758.0,2757.9,0.36570855]
[1643705584005,0.78099101,2758.0,2757.9,0.36570855]
[1643705584205,0.7801837,2758.0,2757.9,0.36570855]
[1643705584406,2.11956017,2758.0,2757.9,0.49668855]
[1643705584611,3.075042,2758.2,2757.9,0.36570855]
[1643705584810,3.075042,2758.2,2757.9,0.1812]
[1643705584811,1.35418637,2758.1,2757.9,0.1812]
[1643705585005,1.35418637,2758.1,2758.0,0.15588547]
[1643705586808,1.35418637,2758.1,2757.9,0.15588547]
[1643705590980,3.075042,2758.2,2757.9,0.15588547]
[1643705592107,0.1812,2758.6,2758.1,0.13098]
[1643705592306,1.1444,2758.7,2758.1,0.90643]
[1643705592505,0.1812,2758.6,2758.1,2.93274578]
[1643705592706,0.13819997,2759.0,2758.1,4.23274578]
[1643705592707,0.1812,2758.8,2758.1,4.23274578]
[1643705593012,0.1812,2758.9,2758.1,4.23274578]
[1643705594210,0.1812,2758.9,2758.3,0.90637]
[1643705594410,0.1812,2758.9,2758.4,0.90638]
[1643705594811,0.99678158,2759.4,2758.4,2.20638]
[1643705595046,0.94062565,2759.2,2758.4,2.20638]
[1643705595852,0.99678158,2759.4,2758.4,2.20638]
[1643705596054,0.3,2759.3,2758.4,2.20638]
[1643705596254,0.99678158,2759.4,2758.4,2.20638]
[1643705596255,1.29678158,2759.4,2758.4,2.20638]
[1643705596460,0.4025725,2759.4,2758.4,2.20638]
[1643705597255,0.83599194,2759.2,2758.4,2.20638]
[1643705598354,0.83599194,2759.2,2758.4,4.20638]
[1643705598556,0.1772,2759.1,2758.4,2.20638]
[1643705599008,0.49872231,2759.1,2758.4,2.20638]
[1643705599806,0.32152231,2759.1,2758.4,2.20638]
[1643705601908,0.83599194,2759.2,2758.4,4.09484737]
[1643705602110,0.83599194,2759.2,2758.4,2.20638]
[1643705602753,0.1773,2759.3,2758.4,4.10118519]
[1643705602951,0.1773,2759.3,2758.6,0.90634]
[1643705603152,0.1773,2759.4,2758.7,0.4812]
[1643705603358,3.32414067,2759.6,2758.8,23.39]
[1643705603553,3.32414067,2759.6,2758.9,0.31218]
[1643705603752,0.11584067,2759.6,2758.9,22.70218]
[1643705603952,0.11584067,2759.6,2758.9,23.00218]
[1643705604160,0.11584067,2759.6,2759.1,22.29611]
[1643705604357,0.11584067,2759.6,2759.2,1.3]
[1643705604762,0.11584067,2759.6,2759.2,0.3]
[1643705605777,0.11584067,2759.6,2759.2,3.17859427]
[1643705605959,0.11584067,2759.6,2759.3,21.39]
[1643705606202,0.11584067,2759.6,2759.5,3.1]
[1643705606406,0.08254353,2759.6,2759.5,0.824]
[1643705606605,0.08254353,2759.6,2759.5,1.824]
[1643705607207,0.08254353,2759.6,2759.5,1.95498]
[1643705607404,0.08254353,2759.6,2759.5,2.13608]
[1643705607808,0.08254353,2759.6,2759.5,2.0051]
[1643705608011,0.08254353,2759.6,2759.5,1.824]
[1643705608209,0.08254353,2759.6,2759.5,0.824]
[1643705608611,0.08254353,2759.6,2759.5,2.7284006]
[1643705608810,0.08254353,2759.6,2759.5,1.3]
[1643705609812,0.08254353,2759.6,2759.5,22.69]
[1643705610461,0.08254353,2759.6,2759.5,1.3]
[1643705610664,0.25984353,2759.6,2759.4,1.81195]
[1643705611164,0.25984353,2759.6,2759.3,1.81193]
[1643705611363,0.08254353,2759.6,2759.3,1.81193]
[1643705611666,1.28854766,2759.6,2759.5,0.004]
[1643705612104,2.59431808,2759.6,2759.5,0.004]
[1643705612275,0.86445201,2759.6,2759.5,0.13498]
[1643705612465,0.86445201,2759.6,2759.5,0.004]
[1643705613268,0.08254353,2759.6,2759.5,0.004]
[1643705618155,0.08254353,2759.6,2759.5,1.87695373]
[1643705618356,0.08254353,2759.6,2759.5,0.004]
[1643705619259,0.08254353,2759.6,2759.5,1.9351554]
[1643705619495,0.08254353,2759.6,2759.5,2.5901354]
[1643705619660,0.08254353,2759.6,2759.5,23.30002668]
[1643705620360,12.48897958,2759.9,2759.6,6.6]
[1643705620573,0.501,2760.0,2759.8,9.46123013]
[1643705620762,0.501,2760.0,2759.9,24.81979]
[1643705620963,0.501,2760.0,2759.9,24.02047558]
[1643705621209,0.501,2760.0,2759.9,24.01860221]
[1643705621620,0.501,2760.0,2759.9,23.95077]
[1643705621912,0.501,2760.0,2759.9,23.81979]
[1643705622313,0.501,2760.0,2759.9,23.95077]
[1643705622617,0.501,2760.0,2759.9,23.81979]
[1643705622813,0.501,2760.0,2759.9,23.22608]
[1643705623113,0.501,2760.0,2759.9,23.4248185]
[1643705623316,0.501,2760.0,2759.9,2.3348185]
[1643705623616,0.501,2760.0,2759.7,1.81174]
[1643705623820,0.501,2760.0,2759.5,0.1851]
[1643705623821,0.6783,2760.0,2759.6,0.90607]
[1643705624014,0.501,2760.0,2759.6,0.90607]
[1643705624212,0.91125736,2759.9,2759.6,0.90607]
[1643705624413,1.08835736,2759.9,2759.6,0.90607]
[1643705625657,0.1771,2759.9,2759.6,0.90607]
[1643705626062,0.1771,2759.9,2759.6,22.29607]
[1643705626269,0.1771,2759.9,2759.7,2.92700037]
[1643705626460,0.501,2760.0,2759.7,24.20178]
[1643705626461,0.32424115,2760.0,2759.7,24.20178]
[1643705627062,0.32424115,2760.0,2759.8,23.30433962]
[1643705627361,0.32424115,2760.0,2759.9,1.0]
[1643705628003,0.32424115,2760.0,2759.9,22.39]
[1643705628570,0.32424115,2760.0,2759.9,22.914]
[1643705629405,0.32424115,2760.0,2759.9,23.25598755]
[1643705629612,0.32424115,2760.0,2759.9,23.38696755]
[1643705630910,0.32424115,2760.0,2759.9,23.04498]
[1643705631914,0.32424115,2760.0,2759.9,23.58534976]
[1643705632453,0.32424115,2760.0,2759.9,23.39334864]
[1643705632658,0.32424115,2760.0,2759.9,23.58528714]
[1643705633062,0.32424115,2760.0,2759.9,23.58928714]
[1643705633462,0.32424115,2760.0,2759.9,1.65898]
[1643705633661,0.32424115,2760.0,2759.9,1.528]
[1643705633859,0.32424115,2760.0,2759.9,0.528]
[1643705634061,0.32424115,2760.0,2759.9,7.14216]
[1643705634460,0.32424115,2760.0,2759.9,8.14216]
[1643705638610,0.32424115,2760.0,2759.9,29.53216]
[1643705639414,0.32424115,2760.0,2759.9,23.04898]
[1643705639616,0.32424115,2760.0,2759.9,23.24137266]
[1643705641470,0.32424115,2760.0,2759.9,1.85137266]
[1643705641673,0.50154115,2760.0,2759.9,0.004]
[1643705643571,1.82365455,2760.0,2759.9,0.004]
[1643705644006,0.50154115,2760.0,2759.9,0.004]
[1643705644411,1.82420313,2760.0,2759.9,0.004]
[1643705646909,2.12420313,2760.0,2759.9,0.004]
[1643705647451,1.82420313,2760.0,2759.9,0.004]
[1643705647656,0.38600684,2759.9,2759.6,0.19320623]
[1643705647857,1.32266198,2759.8,2759.6,0.19320623]
[1643705649259,0.50114115,2760.0,2759.6,0.19320623]
[1643705649458,1.32595821,2759.9,2759.6,0.19320623]
[1643705650160,1.27595821,2759.9,2759.6,0.19320623]
[1643705656567,0.35885556,2759.8,2759.6,0.19320623]
[1643705657170,0.53615556,2759.8,2759.3,1.81196]
[1643705657790,0.88032782,2759.6,2759.3,1.81196]
[1643705657970,0.88032782,2759.6,2759.4,0.3]
[1643705658569,1.0834474,2759.7,2759.4,0.3]
[1643705658844,0.1771,2759.9,2759.5,0.90605]
[1643705659719,1.06006593,2759.9,2759.5,0.90605]
[1643705660113,0.88296593,2759.9,2759.5,0.90605]
[1643705660314,0.88296593,2759.9,2759.5,7.38923]
[1643705662662,0.88296593,2759.9,2759.6,1.0]
[1643705662862,0.88296593,2759.9,2759.6,1.3]
[1643705663568,0.50134115,2760.0,2759.6,1.3]
[1643705663769,0.32424115,2760.0,2759.6,1.3]
[1643705663975,0.32424115,2760.0,2759.6,3.11188]
[1643705666205,0.32424115,2760.0,2759.7,2.0]
[1643705666416,0.32424115,2760.0,2759.9,6.53098]
[1643705666618,0.32424115,2760.0,2759.9,29.63355124]
[1643705666912,0.32424115,2760.0,2759.9,31.38575124]
[1643705667311,0.32424115,2760.0,2759.9,33.19730124]
[1643705667713,0.2401187,2760.0,2759.9,26.79730124]
[1643705667911,0.2401187,2760.0,2759.9,26.04510124]
[1643705668112,0.2401187,2760.0,2759.9,25.91412124]
[1643705668312,0.2401187,2760.0,2759.9,4.52412124]
[1643705668514,0.2401187,2760.0,2759.9,3.81665]
[1643705668713,0.2401187,2760.0,2759.9,5.74286694]
[1643705669117,0.2401187,2760.0,2759.9,3.81665]
[1643705669317,0.2401187,2760.0,2759.9,1.3]
[1643705669559,1.18338273,2760.0,2759.8,0.9057]
[1643705669717,1.36068273,2760.0,2759.6,1.81188]
[1643705670157,1.35865743,2759.9,2759.7,0.16395664]
[1643705670360,0.1771,2759.8,2759.7,0.16395664]
[1643705670559,1.53575743,2759.8,2759.7,0.16395664]
[1643705671560,1.53575743,2759.8,2759.6,0.16395664]
[1643705671765,0.1771,2759.8,2759.7,0.16395664]
[1643705671959,1.53522464,2759.8,2759.7,0.16395664]
[1643705672159,1.53522464,2759.8,2759.6,0.16395664]
[1643705672359,0.1771,2759.8,2759.7,0.16395664]
[1643705672566,1.53524804,2759.8,2759.7,0.16395664]
[1643705672763,1.53524804,2759.8,2759.6,0.16395664]
[1643705673461,1.35814804,2759.7,2759.6,0.16395664]
[1643705674832,1.35814804,2759.8,2759.6,0.16395664]
[1643705677659,1.35814804,2759.8,2759.6,2.16395664]
[1643705677860,1.35814804,2759.8,2759.7,3.01395664]
[1643705678061,0.2401187,2760.0,2759.7,1.06988664]
[1643705678261,1.35930315,2759.9,2759.8,0.16395664]
[1643705678660,1.35930315,2759.9,2759.8,0.68795664]
[1643705684110,7.84248315,2759.9,2759.8,0.68795664]
[1643705687867,7.8473262,2759.9,2759.8,0.68795664]
[1643705688067,7.84732616,2759.9,2759.8,0.68795664]
[1643705688269,6.48318,2759.9,2759.8,0.68795664]
[1643705688469,7.84729044,2759.9,2759.8,0.68795664]
[1643705688705,6.48318,2759.9,2759.8,0.68795664]
[1643705688912,7.84731951,2759.9,2759.8,0.68795664]
[1643705689109,6.48318,2759.9,2759.8,0.68795664]
[1643705689309,7.84735315,2759.9,2759.8,0.68795664]
[1643705689511,6.48318,2759.9,2759.8,0.68795664]
[1643705689714,7.84735348,2759.9,2759.8,7.17113664]
[1643705689917,6.48318,2759.9,2759.8,7.17113664]
[1643705690120,7.84731381,2759.9,2759.8,7.17113664]
[1643705690314,6.48318,2759.9,2759.8,7.17113664]
[1643705690518,7.8473094,2759.9,2759.8,7.17113664]
[1643705690714,7.8473082,2759.9,2759.8,7.17113664]
[1643705690916,6.48318,2759.9,2759.8,7.17113664]
[1643705691116,7.84742591,2759.9,2759.8,7.17113664]
[1643705691315,6.48168459,2759.9,2759.8,7.17113664]
[1643705691516,7.84595838,2759.9,2759.8,7.17113664]
[1643705691716,6.48168459,2759.9,2759.8,7.17113664]
[1643705691919,7.84611567,2759.9,2759.8,7.17113664]
[1643705692116,7.84611612,2759.9,2759.8,7.17113664]
[1643705692348,7.84611629,2759.9,2759.8,7.17113664]
[1643705692561,6.48168459,2759.9,2759.8,7.17113664]
[1643705692761,7.84611551,2759.9,2759.8,7.17113664]
[1643705692957,6.48168459,2759.9,2759.8,7.17113664]
[1643705693157,7.84616777,2759.9,2759.8,7.17113664]
[1643705693357,6.48168459,2759.9,2759.8,7.17113664]
[1643705693559,7.84616834,2759.9,2759.8,7.17113664]
[1643705693757,6.48168459,2759.9,2759.8,7.17113664]
[1643705693958,7.84620591,2759.9,2759.8,7.17113664]
[1643705694160,6.48168459,2759.9,2759.8,7.17113664]
[1643705694365,7.84651022,2759.9,2759.8,7.17113664]
[1643705694560,6.48168459,2759.9,2759.8,7.17113664]
[1643705694761,7.84654714,2759.9,2759.8,7.17113664]
[1643705694961,6.48168459,2759.9,2759.8,7.17113664]
[1643705695161,7.84654929,2759.9,2759.8,7.17113664]
[1643705695364,7.84654993,2759.9,2759.8,7.17113664]
[1643705695567,7.84655168,2759.9,2759.8,7.17113664]
[1643705695761,6.48168459,2759.9,2759.8,7.17113664]
[1643705695961,7.84659571,2759.9,2759.8,7.17113664]
[1643705696206,7.84631951,2759.9,2759.8,7.17113664]
[1643705696411,6.48168459,2759.9,2759.8,7.17113664]
[1643705696612,7.8463484,2759.9,2759.8,7.17113664]
[1643705696813,6.48168459,2759.9,2759.8,7.17113664]
[1643705697012,7.84631302,2759.9,2759.8,6.64713664]
[1643705697213,7.84631375,2759.9,2759.8,6.64713664]
[1643705697413,6.48168459,2759.9,2759.8,6.64713664]
[1643705697615,7.84631136,2759.9,2759.8,6.64713664]
[1643705697813,6.48168459,2759.9,2759.8,6.64713664]
[1643705698025,6.48168459,2759.9,2759.8,9.35223664]
[1643705698026,7.84628832,2759.9,2759.8,9.35223664]
[1643705698216,4.85118733,2759.9,2759.8,10.48321664]
[1643705698413,4.85118733,2759.9,2759.8,9.26248885]
[1643705698615,4.85118733,2759.9,2759.8,8.58614584]
[1643705699215,4.85118733,2759.9,2759.8,9.00542593]
[1643705699616,4.85118733,2759.9,2759.8,8.90249673]
[1643705699834,4.85118733,2759.9,2759.8,10.71413673]
[1643705700780,4.85118733,2759.9,2759.8,11.39342961]
[1643705700975,4.85118733,2759.9,2759.8,10.97414952]
[1643705702376,4.85118733,2759.9,2759.8,32.39232788]
[1643705702982,4.85118733,2759.9,2759.8,11.00232788]
[1643705703177,4.85118733,2759.9,2759.8,10.29485664]
[1643705704909,4.85118733,2759.9,2759.8,10.66183268]
[1643705705310,4.85118733,2759.9,2759.8,9.98277664]
[1643705705709,4.85118733,2759.9,2759.8,16.46595664]
[1643705706912,4.85118733,2759.9,2759.8,16.59693664]
[1643705707113,4.85118733,2759.9,2759.8,17.14501268]
[1643705707972,4.85118733,2759.9,2759.8,17.27599268]
[1643705708169,4.85118733,2759.9,2759.8,17.14501268]
[1643705708574,4.85118733,2759.9,2759.8,17.27599268]
[1643705708769,4.85118733,2759.9,2759.8,17.14501268]
[1643705709371,4.85118733,2759.9,2759.8,17.27599268]
[1643705710775,4.85118733,2759.9,2759.8,16.59693664]
[1643705710978,4.85118733,2759.9,2759.8,37.98693664]
[1643705711220,4.85118733,2759.9,2759.8,38.69440788]
[1643705717076,4.85118733,2759.9,2759.8,39.37261818]
[1643705718379,4.02978275,2759.9,2759.8,39.37261818]
[1643705719969,4.02978275,2759.9,2759.8,17.98261818]
[1643705720129,4.20708275,2759.9,2759.8,16.46595664]
[1643705720332,4.20708275,2759.9,2759.8,15.46595664]
[1643705720927,4.20708275,2759.9,2759.8,13.65431664]
[1643705721332,4.20708275,2759.9,2759.8,13.13031664]
[1643705722674,4.20708275,2759.9,2759.8,13.43031664]
[1643705723073,4.20708275,2759.9,2759.4,1.38568154]
[1643705723278,1.4411597,2759.8,2759.5,0.08947932]
[1643705723475,1.4411597,2759.8,2759.6,0.08947932]
[1643705723476,0.1771,2759.7,2759.6,0.08947932]
[1643705723673,1.6182597,2759.7,2759.6,0.08947932]
[1643705723873,2.31870884,2759.7,2759.6,0.08947932]
[1643705724274,3.24289795,2759.7,2759.6,0.08947932]
[1643705724874,1.9182597,2759.7,2759.6,7.932e-05]
[1643705725078,1.92562836,2759.7,2759.2,0.13726562]
[1643705725275,0.48446866,2759.7,2759.2,0.13726562]
[1643705725477,0.4771,2759.7,2759.2,0.13726562]
[1643705725876,0.7170282,2759.3,2759.2,0.13726562]
[1643705727322,1.0170282,2759.3,2759.2,0.13726562]
[1643705728126,0.44100289,2758.4,2758.2,8.29259424]
[1643705728323,0.1773,2758.3,2758.2,0.145123]
[1643705729327,0.1773,2758.3,2757.5,1.0]
[1643705729623,0.4179244,2758.1,2757.6,0.1812]
[1643705729823,0.86935628,2757.9,2757.5,1.0]
[1643705730268,1.16935628,2757.9,2757.5,1.0]
[1643705730472,1.16935628,2757.9,2757.5,0.2447]
[1643705730473,2.21238771,2757.8,2757.5,0.2447]
[1643705730673,2.21238771,2757.8,2756.7,1.32939418]
[1643705730674,5.05,2757.7,2756.7,1.32939418]
[1643705730875,0.43249152,2756.7,2756.6,1.51059418]
[1643705731071,2.75722388,2757.4,2756.6,0.1812]
[1643705731277,0.90500728,2756.8,2756.6,0.1812]
[1643705731477,0.3,2757.4,2756.6,0.1812]
[1643705731713,0.1773,2757.3,2756.6,0.1812]
[1643705731879,0.4773,2757.3,2756.6,0.1812]
[1643705732074,0.1773,2757.2,2756.6,0.1812]
[1643705732274,0.65928,2757.2,2756.6,0.1812]
[1643705732473,2.00177514,2757.1,2756.6,0.1812]
[1643705732679,1.0844708,2757.0,2756.6,0.1812]
[1643705732873,2.19617533,2756.9,2755.9,0.1812]
[1643705733076,0.1773,2756.8,2755.9,0.1812]
[1643705733274,0.77758745,2756.8,2755.8,1.08828]
[1643705733477,3.26546219,2757.6,2756.2,0.01276986]
[1643705733727,2.0,2757.5,2756.4,7.44]
[1643705733927,2.0,2757.5,2756.5,0.7052]
[1643705734129,3.2607,2757.6,2756.5,1.0052]
[1643705734331,3.2607,2757.6,2756.5,2.0052]
[1643705734332,2.43196534,2757.5,2756.5,2.0052]
[1643705734531,0.91544145,2757.0,2756.5,1.0052]
[1643705734728,0.1773,2757.4,2756.5,1.0052]
[1643705734928,0.3,2757.0,2756.5,1.0052]
[1643705735133,0.1773,2757.4,2756.5,1.0052]
[1643705735330,2.90926534,2757.5,2756.5,1.0052]
[1643705735733,0.83775124,2756.9,2756.5,1.0052]
[1643705737772,0.90926534,2757.5,2756.5,1.0052]
[1643705737773,0.4773,2757.5,2756.5,1.0052]
[1643705738013,3.2607,2757.6,2756.6,2.27978227]
[1643705738180,3.5607,2757.6,2756.7,0.524]
[1643705738374,2.96667001,2757.6,2756.8,2.20840725]
[1643705738576,2.96667001,2757.6,2756.9,0.524]
[1643705738776,3.14397001,2757.6,2756.9,0.524]
[1643705738980,2.96667001,2757.6,2756.9,0.524]
[1643705739179,0.1773,2757.7,2757.0,0.1812]
[1643705739377,0.1773,2758.0,2757.0,0.1812]
[1643705739580,0.8495266,2757.3,2757.0,0.1812]
[1643705739787,0.7495266,2757.3,2757.0,0.1812]
[1643705740114,0.71528793,2757.3,2756.7,0.1812]
[1643705740279,0.71528793,2757.3,2756.7,0.31218]
[1643705741079,3.205,2757.7,2756.8,0.524]
[1643705741311,3.0401,2758.1,2756.9,21.52098]
[1643705741509,3.0401,2758.1,2757.0,3.07647813]
[1643705741709,3.0401,2758.1,2757.0,3.37647813]
[1643705741914,0.1771,2758.0,2757.0,0.824]
[1643705742115,0.40747784,2757.7,2757.1,1.1812]
[1643705742318,4.4725,2758.3,2757.2,0.524]
[1643705742515,4.4725,2758.3,2757.3,0.1812]
[1643705742815,4.7725,2758.3,2757.4,0.524]
[1643705743015,4.7725,2758.3,2757.5,0.524]
[1643705743215,3.5911,2758.3,2757.5,0.524]
[1643705743414,0.84221635,2757.9,2757.5,0.524]
[1643705743615,1.14221635,2757.9,2757.5,0.524]
[1643705747666,3.2911,2758.3,2757.6,2.0]
[1643705747869,3.2911,2758.3,2757.6,2.824]
[1643705748068,3.2911,2758.3,2757.6,0.824]
[1643705748069,3.1138,2758.3,2757.6,0.824]
[1643705748265,0.1773,2758.5,2757.7,1.31218]
[1643705748469,1.2041,2758.7,2757.8,0.524]
[1643705748715,1.2041,2758.7,2757.9,0.1812]
[1643705748716,0.7006281,2758.3,2757.9,0.1812]
[1643705748924,0.7006281,2758.3,2758.0,0.524]
[1643705749922,0.1773,2758.6,2758.0,0.524]
[1643705750130,0.1773,2758.6,2758.1,1.97607934]
[1643705750327,0.1771,2758.8,2758.2,0.524]
[1643705750527,0.1769,2759.0,2758.3,2.43767213]
[1643705750728,0.9064337,2759.1,2758.3,3.56167213]
[1643705750729,0.1769,2759.1,2758.3,3.56167213]
[1643705750925,0.67301952,2758.8,2758.3,1.3052]
[1643705751127,0.67301952,2758.8,2758.4,1.0]
[1643705751328,0.1773,2758.7,2758.3,0.524]
[1643705751726,0.1773,2758.7,2758.3,0.824]
[1643705752569,0.1773,2758.7,2758.3,0.524]
[1643705753370,0.1773,2758.7,2758.3,0.824]
[1643705753972,0.1773,2758.7,2758.3,0.524]
[1643705754173,0.66912936,2758.8,2758.3,0.524]
[1643705754675,0.1776,2758.7,2758.3,0.524]
[1643705755977,0.66912936,2758.8,2758.3,0.524]
[1643705756219,0.66912936,2758.8,2758.3,0.824]
[1643705759827,0.66912936,2758.8,2758.3,0.524]
[1643705760069,0.66912936,2758.8,2758.3,0.824]
[1643705761515,0.66912936,2758.8,2758.3,0.524]
[1643705761670,0.1773,2758.7,2758.3,0.824]
[1643705761876,0.66912936,2758.8,2758.3,0.524]
[1643705762072,0.1769,2758.7,2758.3,0.824]
[1643705762272,0.1769,2758.7,2758.3,0.524]
[1643705762476,0.1769,2758.7,2758.2,0.1812]
[1643705763473,0.1769,2758.7,2758.3,2.606606]
[1643705766118,0.35888,2758.7,2758.3,2.606606]
[1643705766418,1.26558,2758.7,2758.3,2.606606]
[1643705766618,0.1769,2758.7,2758.3,2.606606]
[1643705766818,7.2503,2758.6,2758.3,2.606606]
[1643705767019,0.1771,2758.5,2758.3,2.606606]
[1643705768267,7.2503,2758.6,2758.3,2.606606]
[1643705772921,1.2646198,2758.5,2758.3,2.606606]
[1643705774120,0.83850799,2758.5,2758.3,2.606606]
[1643705774721,0.83723805,2758.5,2758.3,2.606606]
[1643705776570,7.63773276,2758.6,2758.3,2.606606]
[1643705776571,7.2503,2758.6,2758.3,2.606606]
[1643705778714,7.2503,2758.6,2758.4,3.0]
[1643705778924,7.2503,2758.6,2758.4,1.0]
[1643705779918,7.2503,2758.6,2758.5,0.1812]
[1643705780318,7.2503,2758.6,2758.5,0.7052]
[1643705780560,7.2503,2758.6,2758.5,1.0052]
[1643705780926,7.2503,2758.6,2758.5,3.22417654]
[1643705781320,7.2503,2758.6,2758.5,4.22417654]
[1643705781522,7.2503,2758.6,2758.5,3.22417654]
[1643705781718,7.2503,2758.6,2758.5,4.22417654]
[1643705781919,7.2503,2758.6,2758.5,3.22417654]
[1643705782223,7.2503,2758.6,2758.5,2.0052]
[1643705782474,7.2503,2758.6,2758.5,1.0052]
[1643705782676,7.2503,2758.6,2758.5,2.94236268]
[1643705782878,7.2503,2758.6,2758.5,3.94236268]
[1643705783080,7.2503,2758.6,2758.5,4.07334268]
[1643705784682,7.2503,2758.6,2758.5,2.13618]
[1643705785082,7.2503,2758.6,2758.5,1.13618]
[1643705785282,7.2503,2758.6,2758.5,2.13618]
[1643705785482,7.2503,2758.6,2758.5,0.95498]
[1643705785681,7.2503,2758.6,2758.5,2.86285518]
[1643705786083,7.2503,2758.6,2758.5,1.95498]
[1643705786313,7.2503,2758.6,2758.5,0.95498]
[1643705787220,7.2503,2758.6,2758.5,2.87959071]
[1643705787420,7.2503,2758.6,2758.5,25.26959071]
[1643705787621,4.71953118,2758.6,2758.5,32.35672686]
[1643705787819,0.6166266,2758.6,2758.5,33.45969563]
[1643705788022,0.17094719,2759.7,2758.6,6.65]
[1643705788221,0.17094719,2759.7,2759.3,0.91838497]